[Event "Titled Tuesday Blitz August 3 2021"]
[White "Karttunen, Mika"]
[Black "Savitha Shri B"]
[WhiteFideId "502081"]
[BlackFideId "35061887"]
[WhiteElo "2343"]
[BlackElo "2006"]
[Result "1-0"]
[Round "07"]
[TimeControl "180+1"]
[Date "2021.08.03"]
[WhiteClock "0:00:14"]
[BlackClock "0:00:17"]

1. e4 {[%clk 0:03:00]}  c5 {[%clk 0:02:56]} 2. Nf3 {[%clk 0:03:00]}  e6 {[%clk 0:02:56]} 3. d4 {[%clk 0:03:00]}  cxd4 {[%clk 0:02:56]} 4. Nxd4 {[%clk 0:03:01]}  Qb6 {[%clk 0:02:56]} 5. Nb3 {[%clk 0:02:50]}  Nc6 {[%clk 0:02:53]} 6. Be3 {[%clk 0:02:42]}  Qc7 {[%clk 0:02:47]} 7. Nc3 {[%clk 0:02:41]}  Bb4 {[%clk 0:02:38]} 8. f4 {[%clk 0:02:37]}  Nf6 {[%clk 0:02:37]} 9. e5 {[%clk 0:02:14]}  Nxe5 {[%clk 0:02:23]} 10. fxe5 {[%clk 0:02:14]}  Bxc3+ {[%clk 0:02:23]} 11. bxc3 {[%clk 0:02:04]}  Qxc3+ {[%clk 0:02:24]} 12. Qd2 {[%clk 0:01:53]}  Qxe5 {[%clk 0:02:24]} 13. O-O-O {[%clk 0:01:29]}  O-O {[%clk 0:02:12]} 14. Bd4 {[%clk 0:01:25]}  Qh5 {[%clk 0:02:00]} 15. Be2 {[%clk 0:01:23]}  Qg6 {[%clk 0:01:57]} 16. Bxf6 {[%clk 0:01:10]}  Qxf6 {[%clk 0:01:53]} 17. Qd6 {[%clk 0:01:04]}  a5 {[%clk 0:01:50]} 18. a4 {[%clk 0:01:02]}  b6 {[%clk 0:01:39]} 19. Bf3 {[%clk 0:00:55]}  Ra7 {[%clk 0:01:27]} 20. Qxb6 {[%clk 0:00:51]}  Ra6 {[%clk 0:01:27]} 21. Qd4 {[%clk 0:00:48]}  e5 {[%clk 0:01:27]} 22. Qe3 {[%clk 0:00:36]}  d6 {[%clk 0:01:24]} 23. Bd5 {[%clk 0:00:32]}  Bf5 {[%clk 0:01:23]} 24. Rhf1 {[%clk 0:00:28]}  Rc8 {[%clk 0:01:21]} 25. Rd2 {[%clk 0:00:28]}  Rc7 {[%clk 0:00:55]} 26. g4 {[%clk 0:00:27]}  Bxc2 {[%clk 0:00:48]} 27. Rxf6 {[%clk 0:00:25]}  Bxb3+ {[%clk 0:00:48]} 28. Kb2 {[%clk 0:00:26]}  Bxd5 {[%clk 0:00:45]} 29. Rxd5 {[%clk 0:00:20]}  gxf6 {[%clk 0:00:45]} 30. g5 {[%clk 0:00:20]}  f5 {[%clk 0:00:40]} 31. Rxa5 {[%clk 0:00:20]}  Rxa5 {[%clk 0:00:34]} 32. Qb6 {[%clk 0:00:19]}  Rca7 {[%clk 0:00:33]} 33. Qd8+ {[%clk 0:00:18]}  Kg7 {[%clk 0:00:32]} 34. Qf6+ {[%clk 0:00:19]}  Kf8 {[%clk 0:00:33]} 35. Qxd6+ {[%clk 0:00:17]}  Ke8 {[%clk 0:00:33]} 36. Qc6+ {[%clk 0:00:17]}  Kd8 {[%clk 0:00:33]} 37. Qf6+ {[%clk 0:00:17]}  Kc8 {[%clk 0:00:33]} 38. Qxf5+ {[%clk 0:00:17]}  Kb8 {[%clk 0:00:33]} 39. Qxh7 {[%clk 0:00:16]}  Rxa4 {[%clk 0:00:31]} 40. Qh8+ {[%clk 0:00:16]}  Kb7 {[%clk 0:00:30]} 41. Qxe5 {[%clk 0:00:16]}  R7a5 {[%clk 0:00:20]} 42. Qe7+ {[%clk 0:00:15]}  Ka6 {[%clk 0:00:21]} 43. Qxf7 {[%clk 0:00:14]}  Rb4+ {[%clk 0:00:21]} 44. Kc3 {[%clk 0:00:14]}  Rbb5 {[%clk 0:00:21]} 45. Qe6+ {[%clk 0:00:13]}  Kb7 {[%clk 0:00:21]} 46. Qd7+ {[%clk 0:00:13]}  Kb8 {[%clk 0:00:20]} 47. h4 {[%clk 0:00:13]}  Rc5+ {[%clk 0:00:20]} 48. Kb4 {[%clk 0:00:13]}  Re5 {[%clk 0:00:09]} 49. Qd8+ {[%clk 0:00:13]}  Kb7 {[%clk 0:00:09]} 50. Qxa5 {[%clk 0:00:14]}  Re4+ {[%clk 0:00:10]} 51. Kc3 {[%clk 0:00:14]}  Rxh4 {[%clk 0:00:11]} 52. Qd5+ {[%clk 0:00:14]}  Kc7 {[%clk 0:00:11]} 53. Qe5+ {[%clk 0:00:14]}  Kb6 {[%clk 0:00:12]} 54. Qf6+ {[%clk 0:00:14]}  Kb5 {[%clk 0:00:13]} 55. g6 {[%clk 0:00:14]}  Kc5 {[%clk 0:00:14]} 56. Qxh4 {[%clk 0:00:14]}  Kd5 {[%clk 0:00:14]} 57. g7 {[%clk 0:00:15]}  Ke5 {[%clk 0:00:15]} 58. g8=Q {[%clk 0:00:14]}  Kd6 {[%clk 0:00:16]} 59. Qg6+ {[%clk 0:00:13]}  Kc5 {[%clk 0:00:17]} 60. Qhh5# {[%clk 0:00:14]} 1-0


[Site "https://www.chess.com"]

[Event "Titled Tuesday Blitz August 3 2021"]
[White "Kobalia, Mikhail"]
[Black "Weetik, Vjacheslav"]
[WhiteFideId "4119150"]
[BlackFideId "4153472"]
[WhiteElo "2569"]
[BlackElo "2469"]
[Result "0-1"]
[Round "07"]
[TimeControl "180+1"]
[Date "2021.08.03"]
[WhiteClock "0:00:01"]
[BlackClock "0:00:04"]

1. e4 {[%clk 0:03:00]}  c6 {[%clk 0:02:55]} 2. Nf3 {[%clk 0:02:59]}  d5 {[%clk 0:02:55]} 3. exd5 {[%clk 0:03:00]}  cxd5 {[%clk 0:02:55]} 4. Ne5 {[%clk 0:03:01]}  Nf6 {[%clk 0:02:55]} 5. d4 {[%clk 0:03:00]}  g6 {[%clk 0:02:50]} 6. Bb5+ {[%clk 0:02:59]}  Nbd7 {[%clk 0:02:47]} 7. O-O {[%clk 0:02:58]}  Bg7 {[%clk 0:02:47]} 8. Re1 {[%clk 0:02:57]}  O-O {[%clk 0:02:46]} 9. Nf3 {[%clk 0:02:52]}  Ne4 {[%clk 0:02:40]} 10. Bd3 {[%clk 0:02:49]}  Ndf6 {[%clk 0:02:34]} 11. c3 {[%clk 0:02:48]}  b6 {[%clk 0:02:27]} 12. Bf4 {[%clk 0:02:46]}  Bb7 {[%clk 0:02:28]} 13. Nbd2 {[%clk 0:02:43]}  a6 {[%clk 0:02:07]} 14. a4 {[%clk 0:02:40]}  h6 {[%clk 0:02:00]} 15. Ne5 {[%clk 0:02:39]}  Nd6 {[%clk 0:01:50]} 16. Qf3 {[%clk 0:02:27]}  Nfe4 {[%clk 0:01:49]} 17. Qe3 {[%clk 0:02:23]}  g5 {[%clk 0:01:45]} 18. Bg3 {[%clk 0:02:22]}  f5 {[%clk 0:01:40]} 19. f4 {[%clk 0:02:17]}  e6 {[%clk 0:01:33]} 20. Ndf3 {[%clk 0:02:05]}  Kh7 {[%clk 0:01:25]} 21. Rf1 {[%clk 0:01:59]}  Bf6 {[%clk 0:01:23]} 22. Nd2 {[%clk 0:01:51]}  Qe7 {[%clk 0:01:18]} 23. Nxe4 {[%clk 0:01:49]}  fxe4 {[%clk 0:01:04]} 24. Be2 {[%clk 0:01:46]}  Nf5 {[%clk 0:01:04]} 25. Qd2 {[%clk 0:01:46]}  Rg8 {[%clk 0:00:54]} 26. Bg4 {[%clk 0:01:33]}  Raf8 {[%clk 0:00:42]} 27. Bxf5+ {[%clk 0:01:27]}  exf5 {[%clk 0:00:42]} 28. b3 {[%clk 0:01:23]}  Qe6 {[%clk 0:00:36]} 29. Rac1 {[%clk 0:01:22]}  b5 {[%clk 0:00:35]} 30. axb5 {[%clk 0:01:21]}  axb5 {[%clk 0:00:36]} 31. Ra1 {[%clk 0:01:18]}  Rg7 {[%clk 0:00:36]} 32. Ra5 {[%clk 0:01:16]}  b4 {[%clk 0:00:36]} 33. cxb4 {[%clk 0:01:15]}  Rfg8 {[%clk 0:00:23]} 34. Kh1 {[%clk 0:01:11]}  Bxe5 {[%clk 0:00:18]} 35. dxe5 {[%clk 0:01:09]}  d4 {[%clk 0:00:19]} 36. Qxd4 {[%clk 0:01:05]}  gxf4 {[%clk 0:00:12]} 37. Rxf4 {[%clk 0:01:05]}  Qxb3 {[%clk 0:00:12]} 38. Ra7 {[%clk 0:00:29]}  e3 {[%clk 0:00:09]} 39. Rf1 {[%clk 0:00:27]}  Qc2 {[%clk 0:00:07]} 40. Rxb7 {[%clk 0:00:22]}  Rxb7 {[%clk 0:00:06]} 41. Qxe3 {[%clk 0:00:22]}  Rxb4 {[%clk 0:00:02]} 42. e6 {[%clk 0:00:22]}  Qe4 {[%clk 0:00:02]} 43. Qc3 {[%clk 0:00:19]}  Rc4 {[%clk 0:00:02]} 44. Qf6 {[%clk 0:00:17]}  Rc2 {[%clk 0:00:02]} 45. Rg1 {[%clk 0:00:16]}  Rg7 {[%clk 0:00:02]} 46. e7 {[%clk 0:00:07]}  Re2 {[%clk 0:00:02]} 47. e8=Q {[%clk 0:00:07]}  Qxe8 {[%clk 0:00:02]} 48. Qxf5+ {[%clk 0:00:07]}  Qg6 {[%clk 0:00:03]} 49. Qf3 {[%clk 0:00:07]}  Re4 {[%clk 0:00:03]} 50. Rf1 {[%clk 0:00:07]}  Rge7 {[%clk 0:00:04]} 51. h3 {[%clk 0:00:05]}  Re3 {[%clk 0:00:04]} 52. Qf8 {[%clk 0:00:02]}  Qxg3 {[%clk 0:00:03]} 53. Rf7+ {[%clk 0:00:02]}  Rxf7 {[%clk 0:00:04]} 54. Qxf7+ {[%clk 0:00:03]}  Qg7 {[%clk 0:00:04]} 55. Qf5+ {[%clk 0:00:03]}  Kg8 {[%clk 0:00:04]} 56. Qd5+ {[%clk 0:00:03]}  Kf8 {[%clk 0:00:03]} 57. Qa8+ {[%clk 0:00:02]}  Kf7 {[%clk 0:00:02]} 58. Qa7+ {[%clk 0:00:01]}  Re7 {[%clk 0:00:02]} 59. Qf2+ {[%clk 0:00:02]}  Qf6 {[%clk 0:00:03]} 60. Qc5 {[%clk 0:00:02]}  Kg7 {[%clk 0:00:03]} 61. Qg1 {[%clk 0:00:01]}  Rf7 {[%clk 0:00:04]} 0-1


[Site "https://www.chess.com"]

[Event "Titled Tuesday Blitz August 3 2021"]
[White "Lazavik, Denis"]
[Black "El Arousy, Abdul Hameed"]
[WhiteFideId "13515110"]
[BlackFideId "10600086"]
[WhiteElo "2436"]
[BlackElo "2216"]
[Result "1/2-1/2"]
[Round "07"]
[TimeControl "180+1"]
[Date "2021.08.03"]
[WhiteClock "0:00:04"]
[BlackClock "0:00:36"]

1. d4 {[%clk 0:03:00]}  e5 {[%clk 0:03:00]} 2. dxe5 {[%clk 0:03:00]}  d6 {[%clk 0:03:00]} 3. Nf3 {[%clk 0:02:55]}  Nc6 {[%clk 0:02:59]} 4. exd6 {[%clk 0:02:55]}  Bxd6 {[%clk 0:02:57]} 5. Nc3 {[%clk 0:02:48]}  Nf6 {[%clk 0:02:57]} 6. Bg5 {[%clk 0:02:40]}  h6 {[%clk 0:02:58]} 7. Bh4 {[%clk 0:02:34]}  Bf5 {[%clk 0:02:57]} 8. e4 {[%clk 0:02:30]}  Qe7 {[%clk 0:02:53]} 9. Bxf6 {[%clk 0:02:25]}  gxf6 {[%clk 0:02:54]} 10. Bd3 {[%clk 0:02:23]}  O-O-O {[%clk 0:02:49]} 11. Qe2 {[%clk 0:02:16]}  Bg6 {[%clk 0:02:49]} 12. O-O-O {[%clk 0:02:14]}  Ne5 {[%clk 0:02:45]} 13. Nd5 {[%clk 0:02:12]}  Nxd3+ {[%clk 0:02:33]} 14. cxd3 {[%clk 0:02:09]}  Qe6 {[%clk 0:02:33]} 15. Kb1 {[%clk 0:02:06]}  c6 {[%clk 0:02:27]} 16. Nc3 {[%clk 0:02:06]}  Kb8 {[%clk 0:02:22]} 17. Rhe1 {[%clk 0:02:04]}  Bh5 {[%clk 0:02:18]} 18. h3 {[%clk 0:02:03]}  Bxf3 {[%clk 0:02:14]} 19. Qxf3 {[%clk 0:02:03]}  Be5 {[%clk 0:02:14]} 20. Ne2 {[%clk 0:02:00]}  Rd7 {[%clk 0:02:10]} 21. d4 {[%clk 0:02:00]}  Rhd8 {[%clk 0:02:03]} 22. Qe3 {[%clk 0:01:56]}  f5 {[%clk 0:01:56]} 23. Rd3 {[%clk 0:01:09]}  fxe4 {[%clk 0:01:45]} 24. Qxe4 {[%clk 0:01:08]}  Bf6 {[%clk 0:01:45]} 25. Qxe6 {[%clk 0:01:08]}  fxe6 {[%clk 0:01:46]} 26. Kc2 {[%clk 0:01:01]}  c5 {[%clk 0:01:36]} 27. Nf4 {[%clk 0:00:58]}  Rxd4 {[%clk 0:01:34]} 28. Rxd4 {[%clk 0:00:58]}  Bxd4 {[%clk 0:01:31]} 29. Nxe6 {[%clk 0:00:57]}  Bxf2 {[%clk 0:01:28]} 30. Nxd8 {[%clk 0:00:55]}  Bxe1 {[%clk 0:01:27]} 31. Nf7 {[%clk 0:00:55]}  h5 {[%clk 0:01:24]} 32. Kd3 {[%clk 0:00:51]}  b5 {[%clk 0:01:21]} 33. Nd6 {[%clk 0:00:47]}  a6 {[%clk 0:01:12]} 34. Ne4 {[%clk 0:00:46]}  c4+ {[%clk 0:01:10]} 35. Ke2 {[%clk 0:00:41]}  Bb4 {[%clk 0:01:02]} 36. g4 {[%clk 0:00:37]}  hxg4 {[%clk 0:00:59]} 37. hxg4 {[%clk 0:00:38]}  Kc7 {[%clk 0:00:59]} 38. Ke3 {[%clk 0:00:31]}  Kd7 {[%clk 0:00:56]} 39. Kd4 {[%clk 0:00:30]}  Ke6 {[%clk 0:00:52]} 40. Nc5+ {[%clk 0:00:28]}  Kd6 {[%clk 0:00:52]} 41. Nxa6 {[%clk 0:00:25]}  Be1 {[%clk 0:00:52]} 42. g5 {[%clk 0:00:23]}  Bh4 {[%clk 0:00:49]} 43. a4 {[%clk 0:00:11]}  bxa4 {[%clk 0:00:48]} 44. Nc5 {[%clk 0:00:06]}  Bxg5 {[%clk 0:00:37]} 45. Ne4+ {[%clk 0:00:06]}  Kc6 {[%clk 0:00:38]} 46. Nxg5 {[%clk 0:00:06]}  a3 {[%clk 0:00:37]} 47. bxa3 {[%clk 0:00:03]}  Kb5 {[%clk 0:00:37]} 48. Kc3 {[%clk 0:00:02]}  Ka4 {[%clk 0:00:37]} 49. Kb2 {[%clk 0:00:03]}  c3+ {[%clk 0:00:37]} 50. Kxc3 {[%clk 0:00:04]}  Kxa3 {[%clk 0:00:36]} 1/2-1/2


[Site "https://www.chess.com"]

[Event "Titled Tuesday Blitz August 3 2021"]
[White "Lee, Qing Aun"]
[Black "Shailesh, Dravid"]
[WhiteFideId "5804167"]
[BlackFideId "25017969"]
[WhiteElo "2023"]
[BlackElo "2228"]
[Result "1-0"]
[Round "07"]
[TimeControl "180+1"]
[Date "2021.08.03"]
[WhiteClock "0:00:26"]
[BlackClock "0:01:39"]

1. g3 {[%clk 0:03:00]}  Nf6 {[%clk 0:02:59]} 2. Bg2 {[%clk 0:03:00]}  e5 {[%clk 0:02:59]} 3. c4 {[%clk 0:02:59]}  Bc5 {[%clk 0:03:00]} 4. Nc3 {[%clk 0:02:59]}  d6 {[%clk 0:03:00]} 5. e3 {[%clk 0:02:56]}  h5 {[%clk 0:03:01]} 6. d4 {[%clk 0:02:55]}  Bb6 {[%clk 0:02:58]} 7. Nge2 {[%clk 0:02:53]}  h4 {[%clk 0:02:57]} 8. O-O {[%clk 0:02:27]}  c6 {[%clk 0:02:50]} 9. f4 {[%clk 0:02:04]}  exd4 {[%clk 0:02:42]} 10. exd4 {[%clk 0:02:02]}  Bg4 {[%clk 0:02:38]} 11. h3 {[%clk 0:01:57]}  Be6 {[%clk 0:02:35]} 12. Qd3 {[%clk 0:01:50]}  hxg3 {[%clk 0:02:34]} 13. f5 {[%clk 0:01:50]}  Bd7 {[%clk 0:02:28]} 14. Nxg3 {[%clk 0:01:49]}  Na6 {[%clk 0:02:26]} 15. a3 {[%clk 0:01:43]}  Kf8 {[%clk 0:02:21]} 16. Bf4 {[%clk 0:01:41]}  Bc7 {[%clk 0:02:19]} 17. b4 {[%clk 0:01:37]}  Nh5 {[%clk 0:02:18]} 18. Nxh5 {[%clk 0:01:31]}  Rxh5 {[%clk 0:02:19]} 19. Bg3 {[%clk 0:01:21]}  Qf6 {[%clk 0:02:03]} 20. Ne4 {[%clk 0:01:15]}  Qh6 {[%clk 0:01:56]} 21. Bf4 {[%clk 0:01:12]}  Qh7 {[%clk 0:01:52]} 22. Nxd6 {[%clk 0:00:56]}  Kg8 {[%clk 0:01:47]} 23. Qg3 {[%clk 0:00:42]}  Bxd6 {[%clk 0:01:44]} 24. Bxd6 {[%clk 0:00:41]}  Bxf5 {[%clk 0:01:44]} 25. b5 {[%clk 0:00:37]}  Nb8 {[%clk 0:01:42]} 26. Bxb8 {[%clk 0:00:35]}  cxb5 {[%clk 0:01:41]} 27. cxb5 {[%clk 0:00:34]}  Rh6 {[%clk 0:01:42]} 28. Rae1 {[%clk 0:00:31]}  Be6 {[%clk 0:01:40]} 29. d5 {[%clk 0:00:27]}  Rg6 {[%clk 0:01:39]} 30. dxe6 {[%clk 0:00:26]} 1-0


[Site "https://www.chess.com"]

[Event "Titled Tuesday Blitz August 3 2021"]
[White "Leitao, Rafael"]
[Black "Gerzhoy, Leonid"]
[WhiteFideId "2101246"]
[BlackFideId "2806126"]
[WhiteElo "2609"]
[BlackElo "2519"]
[Result "1-0"]
[Round "07"]
[TimeControl "180+1"]
[Date "2021.08.03"]
[WhiteClock "0:00:17"]
[BlackClock "0:00:18"]

1. c4 {[%clk 0:03:00]}  Nf6 {[%clk 0:02:58]} 2. Nc3 {[%clk 0:02:57]}  e5 {[%clk 0:02:58]} 3. Nf3 {[%clk 0:02:56]}  d6 {[%clk 0:02:58]} 4. d4 {[%clk 0:02:55]}  Nbd7 {[%clk 0:02:58]} 5. g3 {[%clk 0:02:54]}  c6 {[%clk 0:02:57]} 6. Bg2 {[%clk 0:02:54]}  e4 {[%clk 0:02:57]} 7. Ng5 {[%clk 0:02:51]}  d5 {[%clk 0:02:57]} 8. cxd5 {[%clk 0:02:48]}  cxd5 {[%clk 0:02:57]} 9. f3 {[%clk 0:02:49]}  exf3 {[%clk 0:02:56]} 10. Nxf3 {[%clk 0:02:45]}  Be7 {[%clk 0:02:55]} 11. O-O {[%clk 0:02:45]}  O-O {[%clk 0:02:55]} 12. Bf4 {[%clk 0:02:45]}  Nb6 {[%clk 0:02:49]} 13. Rc1 {[%clk 0:02:38]}  Be6 {[%clk 0:02:45]} 14. Nb5 {[%clk 0:02:37]}  Rc8 {[%clk 0:02:43]} 15. Qb3 {[%clk 0:02:12]}  Nc4 {[%clk 0:02:28]} 16. Nxa7 {[%clk 0:02:03]}  Ra8 {[%clk 0:02:18]} 17. Nb5 {[%clk 0:02:03]}  Qd7 {[%clk 0:01:40]} 18. Nc7 {[%clk 0:02:01]}  Rac8 {[%clk 0:01:34]} 19. Nxe6 {[%clk 0:01:56]}  fxe6 {[%clk 0:01:32]} 20. Bh3 {[%clk 0:01:42]}  Ne4 {[%clk 0:01:25]} 21. Ne5 {[%clk 0:01:19]}  Nxe5 {[%clk 0:01:23]} 22. dxe5 {[%clk 0:01:06]}  Rxc1 {[%clk 0:01:04]} 23. Rxc1 {[%clk 0:01:04]}  Rc8 {[%clk 0:01:04]} 24. Rxc8+ {[%clk 0:00:52]}  Qxc8 {[%clk 0:01:03]} 25. Be3 {[%clk 0:00:49]}  Bc5 {[%clk 0:00:57]} 26. Kg2 {[%clk 0:00:48]}  Bxe3 {[%clk 0:00:55]} 27. Qxe3 {[%clk 0:00:47]}  Qc6 {[%clk 0:00:49]} 28. Qa3 {[%clk 0:00:40]}  Kf7 {[%clk 0:00:43]} 29. Qf3+ {[%clk 0:00:36]}  Ke7 {[%clk 0:00:41]} 30. Qa3+ {[%clk 0:00:35]}  Kf7 {[%clk 0:00:41]} 31. Qe3 {[%clk 0:00:33]}  Ke7 {[%clk 0:00:32]} 32. Bg4 {[%clk 0:00:31]}  d4 {[%clk 0:00:25]} 33. Qxd4 {[%clk 0:00:24]}  Ng5+ {[%clk 0:00:20]} 34. Kf2 {[%clk 0:00:22]}  Qh1 {[%clk 0:00:18]} 35. Qd6+ {[%clk 0:00:17]}  Kf7 {[%clk 0:00:18]} 36. Qd7+ {[%clk 0:00:17]}  Kg6 {[%clk 0:00:18]} 37. Qe8+ {[%clk 0:00:17]}  Kh6 {[%clk 0:00:18]} 38. Qh5# {[%clk 0:00:17]} 1-0


[Site "https://www.chess.com"]

[Event "Titled Tuesday Blitz August 3 2021"]
[White "Lee, Linden"]
[Black "Stribuk, Artiom"]
[WhiteFideId "30941830"]
[BlackFideId "13515659"]
[WhiteElo "2499"]
[BlackElo "2224"]
[Result "0-1"]
[Round "07"]
[TimeControl "180+1"]
[Date "2021.08.03"]
[WhiteClock "0:00:16"]
[BlackClock "0:00:41"]

1. d4 {[%clk 0:03:00]}  Nf6 {[%clk 0:02:59]} 2. c4 {[%clk 0:03:00]}  g6 {[%clk 0:03:00]} 3. Nc3 {[%clk 0:03:00]}  d5 {[%clk 0:03:00]} 4. cxd5 {[%clk 0:03:01]}  Nxd5 {[%clk 0:03:01]} 5. Nf3 {[%clk 0:03:00]}  Bg7 {[%clk 0:03:01]} 6. Qb3 {[%clk 0:03:00]}  Nxc3 {[%clk 0:02:53]} 7. bxc3 {[%clk 0:03:00]}  O-O {[%clk 0:02:54]} 8. e4 {[%clk 0:03:00]}  c5 {[%clk 0:02:50]} 9. Be3 {[%clk 0:02:57]}  cxd4 {[%clk 0:02:34]} 10. Bxd4 {[%clk 0:02:53]}  Nc6 {[%clk 0:02:33]} 11. Bxg7 {[%clk 0:02:52]}  Kxg7 {[%clk 0:02:34]} 12. Rd1 {[%clk 0:02:53]}  Qa5 {[%clk 0:02:34]} 13. Rd5 {[%clk 0:02:49]}  Qc7 {[%clk 0:02:31]} 14. c4 {[%clk 0:02:41]}  Be6 {[%clk 0:02:29]} 15. Qc3+ {[%clk 0:02:40]}  Kg8 {[%clk 0:02:28]} 16. Rd1 {[%clk 0:02:40]}  Na5 {[%clk 0:02:20]} 17. Rc1 {[%clk 0:02:33]}  Rac8 {[%clk 0:02:19]} 18. Nd2 {[%clk 0:02:28]}  Rfd8 {[%clk 0:02:03]} 19. Be2 {[%clk 0:02:26]}  b5 {[%clk 0:02:00]} 20. c5 {[%clk 0:02:11]}  Nc4 {[%clk 0:01:18]} 21. Nxc4 {[%clk 0:02:09]}  Qxc5 {[%clk 0:01:17]} 22. O-O {[%clk 0:01:48]}  Bxc4 {[%clk 0:01:17]} 23. Bxc4 {[%clk 0:01:46]}  bxc4 {[%clk 0:01:17]} 24. Qf3 {[%clk 0:01:39]}  c3 {[%clk 0:01:16]} 25. Rc2 {[%clk 0:01:36]}  Rd2 {[%clk 0:01:10]} 26. Rfc1 {[%clk 0:01:22]}  Rxc2 {[%clk 0:01:06]} 27. Rxc2 {[%clk 0:01:22]}  Qd4 {[%clk 0:01:01]} 28. Qe2 {[%clk 0:01:11]}  Rb8 {[%clk 0:00:56]} 29. g3 {[%clk 0:01:10]}  Rb2 {[%clk 0:00:52]} 30. Rxb2 {[%clk 0:00:44]}  cxb2 {[%clk 0:00:52]} 31. Qc2 {[%clk 0:00:44]}  a5 {[%clk 0:00:52]} 32. Kf1 {[%clk 0:00:43]}  a4 {[%clk 0:00:52]} 33. a3 {[%clk 0:00:40]}  h5 {[%clk 0:00:49]} 34. Ke2 {[%clk 0:00:38]}  Kg7 {[%clk 0:00:48]} 35. f3 {[%clk 0:00:38]}  e5 {[%clk 0:00:44]} 36. h4 {[%clk 0:00:28]}  Qg1 {[%clk 0:00:43]} 37. Kd2 {[%clk 0:00:17]}  b1=Q {[%clk 0:00:43]} 38. Qc3 {[%clk 0:00:16]}  Qbd1# {[%clk 0:00:41]} 0-1


[Site "https://www.chess.com"]

[Event "Titled Tuesday Blitz August 3 2021"]
[White "Ljukin, Sergei"]
[Black "De Silva, L M S T"]
[WhiteFideId "14102200"]
[BlackFideId "9953698"]
[WhiteElo "2309"]
[BlackElo "1621"]
[Result "1-0"]
[Round "07"]
[TimeControl "180+1"]
[Date "2021.08.03"]
[WhiteClock "0:00:24"]
[BlackClock "0:01:07"]

1. e4 {[%clk 0:03:00]}  g6 {[%clk 0:03:00]} 2. d4 {[%clk 0:03:00]}  Bg7 {[%clk 0:03:00]} 3. Nc3 {[%clk 0:02:59]}  d6 {[%clk 0:03:01]} 4. f4 {[%clk 0:02:59]}  a6 {[%clk 0:03:01]} 5. Nf3 {[%clk 0:02:59]}  b5 {[%clk 0:03:02]} 6. Bd3 {[%clk 0:02:59]}  Bb7 {[%clk 0:03:02]} 7. O-O {[%clk 0:02:58]}  e6 {[%clk 0:03:02]} 8. e5 {[%clk 0:02:58]}  Ne7 {[%clk 0:03:00]} 9. Ne4 {[%clk 0:02:57]}  O-O {[%clk 0:02:58]} 10. c3 {[%clk 0:02:54]}  d5 {[%clk 0:02:51]} 11. Nc5 {[%clk 0:02:53]}  Bc8 {[%clk 0:02:52]} 12. a4 {[%clk 0:02:51]}  bxa4 {[%clk 0:02:42]} 13. Rxa4 {[%clk 0:02:50]}  Nd7 {[%clk 0:02:42]} 14. b4 {[%clk 0:02:34]}  Nxc5 {[%clk 0:02:37]} 15. dxc5 {[%clk 0:02:22]}  Bb7 {[%clk 0:02:33]} 16. Nd4 {[%clk 0:02:21]}  Nc6 {[%clk 0:02:32]} 17. Nxc6 {[%clk 0:02:14]}  Bxc6 {[%clk 0:02:33]} 18. Rxa6 {[%clk 0:02:14]}  Rxa6 {[%clk 0:02:33]} 19. Bxa6 {[%clk 0:02:14]}  f6 {[%clk 0:02:33]} 20. Qe2 {[%clk 0:02:03]}  fxe5 {[%clk 0:02:32]} 21. fxe5 {[%clk 0:02:03]}  Rxf1+ {[%clk 0:02:32]} 22. Kxf1 {[%clk 0:02:03]}  d4 {[%clk 0:02:32]} 23. Bc4 {[%clk 0:01:49]}  dxc3 {[%clk 0:02:28]} 24. Bxe6+ {[%clk 0:01:48]}  Kh8 {[%clk 0:02:28]} 25. Bb3 {[%clk 0:01:40]}  Qh4 {[%clk 0:01:50]} 26. b5 {[%clk 0:01:23]}  Qxh2 {[%clk 0:01:47]} 27. Be3 {[%clk 0:00:27]}  Be8 {[%clk 0:01:23]} 28. Qc4 {[%clk 0:00:26]}  Bxb5 {[%clk 0:01:11]} 29. Qxb5 {[%clk 0:00:24]}  Bxe5 {[%clk 0:01:06]} 30. Qe8+ {[%clk 0:00:24]}  Kg7 {[%clk 0:01:07]} 31. Qe7+ {[%clk 0:00:24]} 1-0


[Site "https://www.chess.com"]

[Event "Titled Tuesday Blitz August 3 2021"]
[White "Makhnev, Denis"]
[Black "Vlassov, Nikolai"]
[WhiteFideId "13707647"]
[BlackFideId "4103360"]
[WhiteElo "2537"]
[BlackElo "2407"]
[Result "0-1"]
[Round "07"]
[TimeControl "180+1"]
[Date "2021.08.03"]
[WhiteClock "0:00:10"]
[BlackClock "0:00:16"]

1. d4 {[%clk 0:03:00]}  Nf6 {[%clk 0:02:58]} 2. c4 {[%clk 0:03:00]}  Nc6 {[%clk 0:02:58]} 3. Nf3 {[%clk 0:03:00]}  e6 {[%clk 0:02:58]} 4. g3 {[%clk 0:03:00]}  Bb4+ {[%clk 0:02:58]} 5. Bd2 {[%clk 0:03:00]}  a5 {[%clk 0:02:58]} 6. Bg2 {[%clk 0:03:00]}  d6 {[%clk 0:02:58]} 7. O-O {[%clk 0:03:00]}  e5 {[%clk 0:02:59]} 8. Bg5 {[%clk 0:02:54]}  exd4 {[%clk 0:02:58]} 9. Nxd4 {[%clk 0:02:53]}  Ne5 {[%clk 0:02:58]} 10. a3 {[%clk 0:02:37]}  Bc5 {[%clk 0:02:58]} 11. Nc3 {[%clk 0:02:38]}  Neg4 {[%clk 0:02:58]} 12. e3 {[%clk 0:01:41]}  h6 {[%clk 0:02:55]} 13. Bxf6 {[%clk 0:01:41]}  Nxf6 {[%clk 0:02:55]} 14. Qa4+ {[%clk 0:01:42]}  Bd7 {[%clk 0:02:53]} 15. Qc2 {[%clk 0:01:42]}  c6 {[%clk 0:02:49]} 16. Rab1 {[%clk 0:01:41]}  O-O {[%clk 0:02:46]} 17. b4 {[%clk 0:01:40]}  axb4 {[%clk 0:02:46]} 18. axb4 {[%clk 0:01:41]}  Bb6 {[%clk 0:02:45]} 19. Rfd1 {[%clk 0:01:40]}  Qe7 {[%clk 0:02:40]} 20. b5 {[%clk 0:01:40]}  Bxd4 {[%clk 0:02:30]} 21. Rxd4 {[%clk 0:01:41]}  Rfd8 {[%clk 0:02:27]} 22. bxc6 {[%clk 0:01:39]}  bxc6 {[%clk 0:02:28]} 23. h3 {[%clk 0:01:34]}  Ne8 {[%clk 0:02:11]} 24. Kh2 {[%clk 0:01:19]}  Rdb8 {[%clk 0:02:09]} 25. Rbd1 {[%clk 0:01:19]}  Ra5 {[%clk 0:02:00]} 26. Ne4 {[%clk 0:01:14]}  Bf5 {[%clk 0:01:55]} 27. Qc3 {[%clk 0:01:10]}  Ra2 {[%clk 0:01:48]} 28. R1d2 {[%clk 0:01:03]}  Rxd2 {[%clk 0:01:46]} 29. Qxd2 {[%clk 0:01:04]}  c5 {[%clk 0:01:30]} 30. Nxd6 {[%clk 0:01:03]}  cxd4 {[%clk 0:01:25]} 31. Nxf5 {[%clk 0:01:03]}  Qc5 {[%clk 0:01:21]} 32. Nxd4 {[%clk 0:01:02]}  Qxc4 {[%clk 0:01:19]} 33. Nc6 {[%clk 0:01:02]}  Rb1 {[%clk 0:00:53]} 34. Qd8 {[%clk 0:00:24]}  Qe6 {[%clk 0:00:41]} 35. Ne7+ {[%clk 0:00:24]}  Kf8 {[%clk 0:00:40]} 36. Nd5 {[%clk 0:00:25]}  Rd1 {[%clk 0:00:34]} 37. Bf3 {[%clk 0:00:23]}  Rd2 {[%clk 0:00:33]} 38. Kg2 {[%clk 0:00:23]}  g5 {[%clk 0:00:32]} 39. g4 {[%clk 0:00:22]}  Qd6 {[%clk 0:00:27]} 40. Qa5 {[%clk 0:00:22]}  Rd3 {[%clk 0:00:26]} 41. Qb5 {[%clk 0:00:20]}  Rd2 {[%clk 0:00:25]} 42. Qa5 {[%clk 0:00:20]}  Rd3 {[%clk 0:00:25]} 43. Be4 {[%clk 0:00:21]}  Rd1 {[%clk 0:00:24]} 44. Bc2 {[%clk 0:00:17]}  Rxd5 {[%clk 0:00:23]} 45. Qa1 {[%clk 0:00:16]}  Qe5 {[%clk 0:00:22]} 46. Qa3+ {[%clk 0:00:16]}  Rd6 {[%clk 0:00:22]} 47. Qa8 {[%clk 0:00:13]}  Kg7 {[%clk 0:00:21]} 48. Qa7 {[%clk 0:00:12]}  Nf6 {[%clk 0:00:21]} 49. Bf5 {[%clk 0:00:12]}  Qd5+ {[%clk 0:00:20]} 50. Kg3 {[%clk 0:00:13]}  Rc6 {[%clk 0:00:19]} 51. Qa1 {[%clk 0:00:11]}  Qd6+ {[%clk 0:00:18]} 52. Kg2 {[%clk 0:00:12]}  Qd5+ {[%clk 0:00:18]} 53. Kg3 {[%clk 0:00:12]}  Qc5 {[%clk 0:00:19]} 54. h4 {[%clk 0:00:11]}  Qc1 {[%clk 0:00:19]} 55. Qe5 {[%clk 0:00:11]}  Qg1+ {[%clk 0:00:18]} 56. Kf3 {[%clk 0:00:11]}  Qh1+ {[%clk 0:00:17]} 57. Ke2 {[%clk 0:00:11]}  Rc1 {[%clk 0:00:16]} 58. hxg5 {[%clk 0:00:10]}  Qd1# {[%clk 0:00:16]} 0-1


[Site "https://www.chess.com"]